fUST/lending_fUST_20240626
["ID","MTS","AMOUNT","RATE_DAILY","PERIOD"]
[330446387,1719416351018,-498.372536,0.00027397,120]
[330446388,1719416351076,-2094.17848598,0.000275,30]
[330446389,1719416351143,-150.0,0.00027664,120]
[330446390,1719416351202,-12166.18367155,0.00028,30]
[330446391,1719416351259,-197.9087,0.00028024,30]
[330446392,1719416351317,-150.0,0.00028664,120]
[330446393,1719416351376,-3034.0,0.00029,60]
[330446394,1719416351438,-350.63526596,0.0003,30]
[330446395,1719416351496,-307.9,0.0003,120]
[330446396,1719416351554,-200.0,0.0003003,120]
[330446397,1719416351610,-200.0,0.0003108,120]
[330446398,1719416351666,-2413.34532015,0.00031404,120]
[330446399,1719416351722,-498.372536,0.00031963,120]
[330446400,1719416351779,-200.0,0.00032355,120]
[330446401,1719416351838,-200.0,0.00032427,120]
[330446402,1719416351896,-4632.56609538,0.000325,60]
[330446403,1719416351959,-200.0,0.0003288,120]
[330446404,1719416352017,-824.95666303,0.00034826,120]
[330446405,1719416352075,-1660.02784049,0.00035,120]
[330446406,1719416352135,-870.18,0.00035,120]
[330446407,1719416352192,-6087.0,0.00035,30]
[330446408,1719416352257,-226.17,0.00035,120]
[330446409,1719416352338,-200.0,0.0003543,120]
[330446410,1719416352406,-1695.76,0.00035616,120]
[330446411,1719416352467,-1695.76,0.00035616,120]
[330446412,1719416352531,-1695.76,0.00035616,120]
[330446413,1719416352592,-1695.76,0.00035616,120]
[330446414,1719416352655,-1695.76,0.00035616,120]
[330446415,1719416352715,-1695.76,0.00035616,120]
[330446416,1719416352778,-1695.76,0.00035616,120]
[330446417,1719416352844,-1695.76,0.00035616,120]
[330446418,1719416352910,-1695.76,0.00035616,120]
[330446419,1719416352972,-1695.76,0.00035616,120]
[330446420,1719416353035,-1695.76,0.00035616,120]
[330446421,1719416353095,-1695.76,0.00035616,120]
[330446422,1719416353155,-1695.76,0.00035616,120]
[330446423,1719416353214,-1695.76,0.00035616,120]
[330446424,1719416353279,-1695.76,0.00035616,120]
[330446425,1719416353342,-1695.76,0.00035616,120]
[330446426,1719416353402,-1695.76,0.00035616,120]
[330446427,1719416353465,-1695.76,0.00035616,120]
[330446428,1719416353529,-1695.76,0.00035616,120]
[330446429,1719416353593,-1695.76,0.00035616,120]
[330446430,1719416353659,-1695.76,0.00035616,120]
[330446431,1719416353721,-1695.76,0.00035616,120]
[330446432,1719416353783,-1695.76,0.00035616,120]
[330446433,1719416353843,-1695.85540959,0.00035616,120]
[330446434,1719416353906,-203.21525848,0.00036,30]
[330446435,1719416353968,-10000.0,0.000365,40]
[330446436,1719416354038,-498.372536,0.0003653,120]
[330446437,1719416354101,-358.0,0.00038,120]
[330446438,1719416354163,-200.0,0.00038238,120]
[330446439,1719416354220,-151.94744845,0.00038455,30]
[330446440,1719416354280,-259.3157881,0.000385,120]
[330446441,1719416354342,-201792.55360428,0.000388,60]
[330446442,1719416354408,-47128.20365413,0.000388,60]
[330446443,1719416354473,-150000.0,0.000389,120]
[330446444,1719416354544,-2000.0,0.00039178,60]
[330446445,1719416354610,-1725.03679724,0.00039178,63]
[330446446,1719416354678,-1000.0,0.00039178,60]
[330446447,1719416354744,-500.0,0.00039178,60]
[330446448,1719416354814,-1000.0,0.00039178,60]
[330446449,1719416354893,-500.0,0.00039178,60]
[330446450,1719416354961,-500.0,0.00039178,60]
[330446451,1719416355031,-500.0,0.00039178,60]
[330446452,1719416355095,-500.0,0.00039178,60]
[330446453,1719416355161,-500.0,0.00039178,60]
[330446454,1719416355221,-500.0,0.00039178,60]
[330446455,1719416355284,-507.63449559,0.00039178,60]
[330446456,1719416355443,-2000.0,0.00039178,60]
[330446457,1719416355511,-1000.0,0.00039178,63]
[330446458,1719416355574,-500.0,0.00039178,60]
[330446459,1719416355637,-500.0,0.00039178,60]
[330446460,1719416355700,-500.0,0.00039178,60]
[330446461,1719416355760,-250000.0,0.000393,120]
[330446462,1719416355822,-117157.0508554,0.000397,120]
[330446463,1719416363393,-382842.9491446,0.000397,120]
[330446464,1719416363452,-1294.0,0.00039898,50]
[330446465,1719416363509,-67478.89892101,0.00039948,120]
[330446466,1719416363568,-1000.0,0.0004,120]
[330446467,1719416363624,-151.0,0.0004,120]
[330446468,1719416363682,-20714.55724082,0.0004,120]
[330446469,1719416363742,-5479.999999,0.0004,120]
[330446470,1719416363818,-4066.55418616,0.0004,120]
[330446471,1719416363878,-537.28464223,0.0004,30]
[330446472,1719416363947,-10000.0,0.0004,45]
[330446473,1719416364009,-151.0,0.0004,120]
[330446474,1719416364074,-259.67785789,0.0004,30]
[330446475,1719416364142,-151.94744845,0.00040455,38]
[330446476,1719416364207,-9251.59899217,0.00041,30]
[330446477,1719416364270,-276.6,0.00041041,31]
[330446478,1719416364330,-152.0,0.00041041,31]
[330446479,1719416364396,-498.372536,0.00041096,120]
[330446480,1719416364458,-151.0,0.00041315,120]
[330446481,1719416364520,-200.0,0.00041349,120]
[330446482,1719416364582,-484.7905688,0.0004159,30]
[330446483,1719416364644,-200.0,0.000418,120]
[330446484,1719416364707,-654.443686,0.00042,30]
[330446485,1719416364775,-50000.0,0.0004244,120]
[330446486,1719416364846,-151.94744845,0.00042455,47]
[330446487,1719416364918,-10000.0,0.000425,50]
[330446488,1719416364985,-151.0,0.0004263,120]
[330446489,1719416365049,-400.0,0.000428,120]
[330446490,1719416365112,-1243.17834128,0.00043,120]
[330446491,1719416365176,-400.0,0.00043,120]
[330446492,1719416365239,-256.68,0.00043,120]
[330446493,1719416365298,-227.96,0.00043,120]
[330446494,1719416365360,-5670.31953218,0.00043,30]
[330446495,1719416365420,-481.86496751,0.000432,120]
[330446496,1719416365483,-10000.0,0.00043835,33]
[330446497,1719416365545,-2032.09,0.00043835,120]
[330446498,1719416365606,-680.66,0.00043835,120]
[330446499,1719416365666,-500.0,0.00043835,30]
[330446500,1719416365726,-151.0,0.00043945,120]
[330446501,1719416365784,-2700.0,0.00044,120]
[330446502,1719416365845,-500.0,0.00044,120]
[330446503,1719416365904,-400.0,0.00044,30]
[330446504,1719416365968,-10000.0,0.00044383,34]
[330446505,1719416366033,-2032.09,0.00044383,120]
[330446506,1719416366092,-680.66,0.00044383,120]
[330446507,1719416366152,-151.94744845,0.00044455,55]
[330446508,1719416366216,-1298.0,0.00044798,52]
[330446509,1719416366277,-2032.09,0.00044931,120]
[330446510,1719416366334,-680.66,0.00044931,120]
[330446511,1719416366393,-10000.0,0.00045,35]
[330446512,1719416366453,-174.41410202,0.00045,120]
[330446513,1719416366511,-150.0,0.00045,31]
[330446514,1719416366569,-188682.66340331,0.00045,120]
[330446515,1719416366626,-2502.0,0.00045,120]
[330446516,1719416366682,-15000.0,0.00045,120]
[330446517,1719416366737,-10000.0,0.00045,50]
[330446518,1719416366795,-5092.48,0.00045205,120]
[330446519,1719416366854,-151.0,0.0004526,120]
[330446520,1719416366912,-276.6,0.00045361,31]
[330446521,1719416366968,-152.0,0.00045361,31]
[330446522,1719416367026,-2032.09,0.00045479,120]
[330446523,1719416367086,-680.66,0.00045479,120]
[330446524,1719416367151,-1844.24327908,0.0004599,120]
[330446525,1719416367211,-150.0,0.00046,33]
[330446526,1719416367269,-400.0,0.00046,30]
[330446527,1719416367326,-2032.09,0.00046027,120]
[330446528,1719416367385,-680.66,0.00046027,120]
[330446529,1719416367443,-151.94744845,0.00046455,63]
[330446530,1719416367501,-2032.09,0.00046575,120]
[330446531,1719416367561,-680.66,0.00046575,120]
[330446532,1719416367619,-500.0,0.00046575,31]
[330446533,1719416367901,-500.0,0.00046575,120]
[330446534,1719416367962,-181.70904724,0.00046575,120]
[330446535,1719416368020,-151.0,0.00046575,120]
[330446536,1719416368081,-10000.0,0.00047,37]
[330446537,1719416368146,-200.0,0.00047,35]
[330446538,1719416368208,-2032.09,0.00047123,120]
[330446539,1719416368267,-680.66,0.00047123,120]
[330446540,1719416368324,-5092.48,0.00047397,120]
[330446541,1719416368383,-10000.0,0.000475,55]
[330446542,1719416368440,-2032.09,0.00047671,120]
[330446543,1719416368501,-680.66,0.00047671,120]
[330446544,1719416368562,-5095.0,0.00047808,30]
[330446545,1719416368621,-151.0,0.0004789,120]
[330446546,1719416368683,-500.0,0.00048,30]
[330446547,1719416368741,-500.0,0.00048,30]
[330446548,1719416368798,-500.0,0.00048,30]
[330446549,1719416368855,-500.0,0.00048,30]
[330446550,1719416368915,-502.750992,0.00048,30]
[330446551,1719416368976,-500.0,0.00048,120]
[330446552,1719416369037,-400.0,0.00048,30]
[330446553,1719416369098,-2032.09,0.00048219,120]
[330446554,1719416369158,-680.66,0.00048219,120]
[330446555,1719416369219,-151.94744845,0.00048455,72]
[330446556,1719416369280,-129833.46841116,0.0004858,30]
[330446557,1719416369342,-2032.09,0.00048767,120]
[330446558,1719416369406,-680.66,0.00048767,120]
[330446559,1719416369464,-2013.46764081,0.000488,90]
[330446560,1719416369522,-5276.45094641,0.000488,90]
[330446561,1719416369580,-1858.63567559,0.000488,90]
[330446562,1719416369640,-1970.30965796,0.0004888,120]
[330446563,1719416369698,-15000.0,0.000489,120]
[330446564,1719416369761,-10000.0,0.00049,39]
[330446565,1719416369824,-151.0,0.00049205,120]
[330446566,1719416369885,-5552.53816172,0.000493,120]
[330446567,1719416369947,-32648.75589944,0.000493,120]
[330446568,1719416370004,-2032.09,0.00049315,120]
[330446569,1719416370062,-680.66,0.00049315,120]
[330446570,1719416370118,-500.0,0.00049315,32]
[330446571,1719416370174,-5092.48,0.00049589,120]
[330446572,1719416370233,-276.6,0.0004968,60]
[330446573,1719416370289,-152.0,0.0004968,60]
[330446574,1719416370345,-178.23,0.000498,90]
[330446575,1719416370409,-2032.09,0.00049863,120]
[330446576,1719416370464,-680.66,0.00049863,120]
[330446577,1719416370520,-443.0,0.00049921,120]
[330446578,1719416370577,-155.000775,0.0005,30]
[330446579,1719416370634,-254.57915635,0.0005,120]
[330446580,1719416370693,-3848.67671138,0.0005,120]
[330446581,1719416370748,-1556.96908687,0.0005,120]
[330446582,1719416370806,-150.0,0.0005,41]
[330446583,1719416370863,-3142.0,0.0005,120]
[330446584,1719416370922,-3112.0,0.0005,120]
[330446585,1719416370983,-1000.0,0.0005,120]
[330446586,1719416371042,-3999.00235312,0.0005,120]
[330446587,1719416371103,-40892.25337607,0.0005,120]
[330446588,1719416371163,-942.1235286,0.0005,120]
[330446589,1719416371223,-158.00994617,0.0005,120]
[330446590,1719416371285,-1591.2623152,0.0005,120]
[330446591,1719416371342,-10000.0,0.0005,60]
[330446592,1719416371401,-902.78583315,0.0005,120]
[330446593,1719416371456,-3694.75703573,0.0005,30]
[330446594,1719416371515,-443.0,0.0005,120]
[330446595,1719416371570,-400.0,0.0005,30]
[330446596,1719416371628,-5377.69149539,0.0005,60]
[330446597,1719416371682,-443.0,0.00050195,120]
[330446598,1719416371740,-2032.09,0.0005041,120]
[330446599,1719416371796,-680.66,0.0005041,120]
[330446600,1719416371852,-151.94744845,0.00050455,80]
[330446601,1719416371912,-443.0,0.00050469,120]
[330446602,1719416371974,-151.0,0.00050521,120]
[330446603,1719416372033,-443.0,0.00050743,120]
[330446604,1719416372093,-2032.09,0.00050958,120]
[330446605,1719416372158,-680.66,0.00050958,120]
[330446606,1719416372215,-150.0,0.00051,43]
[330446607,1719416372270,-15000.0,0.00051,120]
[330446608,1719416372330,-2032.09,0.00051506,120]
[330446609,1719416372391,-680.66,0.00051506,120]
[330446610,1719416372451,-5092.48,0.0005178,120]
[330446611,1719416372515,-151.0,0.00051836,120]
[330446612,1719416372571,-2014.68,0.00052,80]
[330446613,1719416372628,-200.0,0.00052,45]
[330446614,1719416372686,-159324.75112346,0.00052,30]
[330446615,1719416372743,-52451.90780242,0.00052,30]
[330446616,1719416372805,-2032.09,0.00052054,120]
[330446617,1719416372867,-680.66,0.00052054,120]
[330446618,1719416372924,-500.0,0.00052054,33]
[330446619,1719416372984,-443.0,0.0005213,120]
[330446620,1719416373051,-151.94744845,0.00052455,88]
[330446621,1719416373118,-10000.0,0.000525,70]
[330446622,1719416373178,-1709.0,0.000525,60]
[330446623,1719416373243,-2032.09,0.00052602,120]
[330446624,1719416373305,-680.66,0.00052602,120]
[330446625,1719416373364,-260000.0,0.000527,120]
[330446626,1719416373422,-3235.42813643,0.0005289,120]
[330446627,1719416373482,-1192.99999928,0.00053,120]
[330446628,1719416373546,-2000.0,0.00053,60]
[330446629,1719416373606,-955.7582,0.00053,60]
[330446630,1719416373667,-2032.09,0.0005315,120]
[330446631,1719416373728,-680.66,0.0005315,120]
[330446632,1719416373790,-151.0,0.00053151,120]
[330446633,1719416373850,-2412.41333454,0.0005319,120]
[330446634,1719416373908,-1203.0416218,0.0005319,120]
[330446635,1719416373968,-172.68971413,0.000533,120]
[330446636,1719416374030,-2032.09,0.00053698,120]
[330446637,1719416374202,-680.66,0.00053698,120]
[330446638,1719416374263,-5092.48,0.00053972,120]
[330446639,1719416374323,-2025.50038807,0.00054,120]
[330446640,1719416374380,-194.71353903,0.00054,120]
[330446641,1719416374436,-500.0,0.00054,120]
[330446642,1719416374497,-276.6,0.00054,90]
[330446643,1719416374557,-152.0,0.00054,90]
[330446644,1719416374619,-151.0,0.0005411,120]
[330446645,1719416374682,-2032.09,0.00054246,120]
[330446646,1719416374742,-680.66,0.00054246,120]
[330446647,1719416374801,-151.94744845,0.00054455,97]
[330446648,1719416374863,-151.0,0.00054466,120]
[330446649,1719416374926,-443.0,0.00054736,120]
[330446650,1719416375000,-456.0,0.00054736,120]
[330446651,1719416375061,-2032.09,0.00054794,120]
[330446652,1719416375121,-281.59308229,0.00054794,120]
[330446653,1719416375185,-277.05629836,0.00054794,120]
[330446654,1719416375248,-680.66,0.00054794,120]
[330446655,1719416375315,-359.66521905,0.00054794,120]
[330446656,1719416375380,-506.82959549,0.00054794,120]
[330446657,1719416375444,-177.22551871,0.00054794,120]
[330446658,1719416375509,-500.0,0.00054794,120]
[330446659,1719416375570,-301.55803254,0.00054794,120]
[330446660,1719416375630,-523.95331314,0.00054794,120]
[330446661,1719416375691,-202.05484723,0.00054794,120]
[330446662,1719416375753,-500.0,0.00054794,120]
[330446663,1719416375818,-500.0,0.00054794,120]
[330446664,1719416375883,-500.0,0.00054794,120]
[330446665,1719416375945,-500.0,0.00054794,120]
[330446666,1719416376006,-458.22560459,0.00054794,120]
[330446667,1719416376065,-500.0,0.00054794,120]
[330446668,1719416376124,-500.0,0.00054794,120]
[330446669,1719416376186,-586.17199567,0.00054794,120]
[330446670,1719416376248,-502.94675515,0.00054794,120]
[330446671,1719416376310,-500.0,0.00054794,120]
[330446672,1719416376370,-500.0,0.00054794,120]
[330446673,1719416376430,-500.0,0.00054794,120]
[330446674,1719416376489,-500.0,0.00054794,120]
[330446675,1719416376551,-500.0,0.00054794,120]
[330446676,1719416376619,-500.0,0.00054794,120]
[330446677,1719416376680,-500.0,0.00054794,120]
[330446678,1719416376740,-519.20452192,0.00054794,120]
[330446679,1719416376800,-196.58780162,0.00054795,120]
[330446680,1719416376860,-197.08,0.00054795,120]
[330446681,1719416376923,-157.4202413,0.00054795,120]
[330446682,1719416376981,-157.4202413,0.00054795,120]
[330446683,1719416377039,-157.4202413,0.00054795,120]
[330446684,1719416377098,-157.4202413,0.00054795,120]
[330446685,1719416377157,-157.4202413,0.00054795,120]
[330446686,1719416377217,-157.4202413,0.00054795,120]
[330446687,1719416377275,-157.4202413,0.00054795,120]
[330446688,1719416377336,-157.4202413,0.00054795,120]
[330446689,1719416377398,-157.4202413,0.00054795,120]
[330446690,1719416377459,-157.92,0.00054795,120]
[330446691,1719416377516,-599.84321544,0.00054795,120]
[330446692,1719416377574,-599.84321544,0.00054795,120]
[330446693,1719416377631,-599.84321544,0.00054795,120]
[330446694,1719416377688,-599.84321544,0.00054795,120]
[330446695,1719416377747,-599.84321544,0.00054795,120]
[330446696,1719416377805,-599.84321544,0.00054795,120]
[330446697,1719416377863,-599.84321544,0.00054795,120]
[330446698,1719416377923,-599.84321544,0.00054795,120]
[330446699,1719416377983,-599.84321544,0.00054795,120]
[330446700,1719416378040,-599.84321544,0.00054795,120]
[330446701,1719416378102,-599.84321544,0.00054795,120]
[330446702,1719416378163,-599.84321544,0.00054795,120]
[330446703,1719416378233,-599.84321544,0.00054795,120]
[330446704,1719416378295,-599.84321544,0.00054795,120]
[330446705,1719416378353,-599.84321544,0.00054795,120]
[330446706,1719416378413,-599.84321544,0.00054795,120]
[330446707,1719416378480,-599.84321544,0.00054795,120]
[330446708,1719416378543,-599.84321544,0.00054795,120]
[330446709,1719416378603,-599.84321544,0.00054795,120]
[330446710,1719416378661,-600.34,0.00054795,120]
[330446711,1719416378719,-2399.44786177,0.00054795,120]
[330446712,1719416378778,-2399.44786177,0.00054795,120]
[330446713,1719416378836,-2399.44786177,0.00054795,120]
[330446714,1719416378892,-2399.44786177,0.00054795,120]
[330446715,1719416378956,-2399.44786177,0.00054795,120]
[330446716,1719416379013,-2399.44786177,0.00054795,120]
[330446717,1719416379077,-2399.44786177,0.00054795,120]
[330446718,1719416379144,-2399.44786177,0.00054795,120]
[330446719,1719416379211,-2399.44786177,0.00054795,120]
[330446720,1719416379272,-2399.44786177,0.00054795,120]
[330446721,1719416379333,-2399.44786177,0.00054795,120]
[330446722,1719416379396,-2399.44786177,0.00054795,120]
[330446723,1719416379459,-2399.44786177,0.00054795,120]
[330446724,1719416379521,-2399.44786177,0.00054795,120]
[330446725,1719416379584,-2399.44786177,0.00054795,120]
[330446726,1719416379650,-2399.44786177,0.00054795,120]
[330446727,1719416379713,-2399.44786177,0.00054795,120]
[330446728,1719416379776,-2399.44786177,0.00054795,120]
[330446729,1719416379840,-2399.44786177,0.00054795,120]
[330446730,1719416379907,-2399.94,0.00054795,120]
[330446736,1719416580522,203.01,0.00010959,2]
[330446737,1719416592160,169.17,0.00010959,2]
[330446738,1719416602965,845.88,0.00010959,2]
[330446741,1719416633349,155.07868036,0.00010959,2]
[330446742,1719416645045,3767.28917554,0.00010959,2]
[330446743,1719416648853,155.14547188,0.00010959,2]
[330446744,1719416660507,4690.36708649,0.00010959,2]
[330446745,1719416662556,436.49865584,0.00010959,2]
[330446746,1719416667457,183.12871718,0.00013283,2]
[330446747,1719416671092,1486.86287617,0.00013283,2]
[330446748,1719416686582,154.83742071,0.00010959,2]
[330446750,1719416750473,16222.50177005,0.00010959,2]
[330446751,1719416791575,154.90842268,0.00010959,2]
[330446753,1719416809628,14373.66134113,0.00013283,2]
[330446754,1719416908744,-654.65108681,0.00014466,2]
[330446755,1719416908807,-630.11564591,0.00014466,2]
[330446756,1719416908840,-24.5354409,0.00014466,2]
[330446757,1719416908877,-130.30197981,0.00014466,2]
[330446758,1719416908909,-435.59534284,0.00014623,2]
[330446759,1719416934284,-692.15507673,0.00014623,2]
[330446760,1719416934339,-692.15507673,0.00014623,2]
[330446761,1719416934426,-649.45925928,0.00014623,2]
[330446792,1719417032181,-1573.47636365,0.00014158,2]
[330446805,1719417037939,-23326.52363635,0.00014158,2]
[330446806,1719417037949,-164.85188126,0.00014622,2]
[330446807,1719417037959,-2878.28119532,0.00014623,2]
[330446808,1719417037968,-661.12832609,0.00014794,2]
[330446809,1719417037978,-232.010326,0.00014795,2]
[330446810,1719417037988,-873.68349193,0.000149,2]
[330446811,1719417037998,-516.65341742,0.00014968,2]
[330446812,1719417038011,-186.23483516,0.00014969,2]
[330446813,1719417038021,-26062.27305124,0.00015,2]
[330446814,1719417038034,-154.83742071,0.00015006,2]
[330446815,1719417038044,-335.7523045,0.00015996,2]
[330446816,1719417038054,-1284.76673272,0.00015999,2]
[330446817,1719417038064,-6971.08828511,0.00016099,2]
[330446818,1719417038074,-501.37982969,0.00016438,2]
[330446819,1719417038084,-503.98550573,0.00016438,2]
[330446820,1719417038094,-500.0,0.00016438,2]
[330446821,1719417038104,-509.96009942,0.00016438,2]
[330446822,1719417038113,-500.0,0.00016438,2]
[330446823,1719417038124,-500.0,0.00016438,2]
[330446824,1719417038133,-501.641051,0.00016438,2]
[330446825,1719417038146,-500.0,0.00016438,2]
[330446826,1719417038155,-500.0,0.00016438,2]
[330446827,1719417038164,-512.62542806,0.00016438,2]
[330446828,1719417038175,-500.83483371,0.00016438,2]
[330446829,1719417038185,-502.07556538,0.00016438,2]
[330446830,1719417038195,-500.30653676,0.00016438,2]
[330446831,1719417038204,-572.34002122,0.00016438,2]
[330446832,1719417038214,-500.0,0.00016438,2]
[330446833,1719417038223,-500.0,0.00016438,2]
[330446834,1719417038234,-500.0,0.00016438,2]
[330446835,1719417038244,-500.0,0.00016438,2]
[330446836,1719417038255,-500.0,0.00016438,2]
[330446837,1719417038265,-500.0,0.00016438,2]
[330446838,1719417038275,-500.0,0.00016438,2]
[330446839,1719417038284,-500.0,0.00016438,2]
[330446840,1719417038294,-428.88642443,0.00016438,2]
[330446841,1719417038303,-500.0,0.00016438,2]
[330446842,1719417038314,-500.0,0.00016438,2]
[330446843,1719417038323,-500.0,0.00016438,2]
[330446844,1719417038332,-500.0,0.00016438,2]
[330446845,1719417038342,-500.0,0.00016438,2]
[330446846,1719417038351,-500.0,0.00016438,2]
[330446847,1719417038361,-500.0,0.00016438,2]
[330446848,1719417038373,-500.0,0.00016438,2]
[330446849,1719417038384,-500.0,0.00016438,2]
[330446850,1719417038395,-500.0,0.00016438,2]
[330446851,1719417038406,-500.0,0.00016438,2]
[330446852,1719417038415,-500.0,0.00016438,2]
[330446853,1719417038427,-500.0,0.00016438,2]
[330446854,1719417038437,-500.0,0.00016438,2]
[330446855,1719417038447,-500.0,0.00016438,2]
[330446856,1719417038459,-500.0,0.00016438,2]
[330446857,1719417038469,-500.0,0.00016438,2]
[330446858,1719417038479,-500.0,0.00016438,2]
[330446859,1719417038488,-500.0,0.00016438,2]
[330446860,1719417038498,-500.0,0.00016438,2]
[330446861,1719417038507,-500.0,0.00016438,2]
[330446862,1719417038517,-500.0,0.00016438,2]
[330446863,1719417038527,-500.0,0.00016438,2]
[330446864,1719417038537,-500.0,0.00016438,2]
[330446865,1719417038546,-283.97718624,0.00016438,2]
[330446866,1719417038556,-500.0,0.00016438,2]
[330446867,1719417038565,-500.0,0.00016438,2]
[330446868,1719417038575,-500.0,0.00016438,2]
[330446869,1719417038586,-500.0,0.00016438,2]
[330446870,1719417038595,-500.0,0.00016438,2]
[330446871,1719417038605,-365.55023899,0.00016438,2]
[330446872,1719417038615,-500.0,0.00016438,2]
[330446873,1719417038626,-510.65136855,0.00016438,2]
[330446874,1719417038635,-552.88514986,0.00016438,2]
[330446875,1719417038647,-500.0,0.00016438,2]
[330446876,1719417038656,-605.55244346,0.00016438,2]
[330446877,1719417038666,-500.0,0.00016438,2]
[330446878,1719417038677,-500.0,0.00016438,2]
[330446879,1719417038687,-500.0,0.00016438,2]
[330446880,1719417038696,-480.1300929,0.00016438,2]
[330446881,1719417038706,-500.0,0.00016438,2]
[330446882,1719417038716,-500.0,0.00016438,2]
[330446883,1719417038726,-500.0,0.00016438,2]
[330446884,1719417038736,-553.74364378,0.00016438,2]
[330446885,1719417038746,-500.0,0.00016438,2]
[330446886,1719417038755,-500.0,0.00016438,2]
[330446887,1719417038765,-500.0,0.00016438,2]
[330446888,1719417038775,-500.0,0.00016438,2]
[330446889,1719417038785,-504.82232797,0.00016438,2]
[330446890,1719417038795,-509.13072355,0.00016438,2]
[330446891,1719417038805,-500.0,0.00016438,2]
[330446892,1719417038815,-502.86678996,0.00016438,2]
[330446893,1719417038825,-500.0,0.00016438,2]
[330446894,1719417038835,-500.0,0.00016438,2]
[330446895,1719417038844,-500.0,0.00016438,2]
[330446896,1719417038855,-500.0,0.00016438,2]
[330446897,1719417038864,-500.0,0.00016438,2]
[330446898,1719417038874,-533.32067151,0.00016438,2]
[330446899,1719417038884,-500.0,0.00016438,2]
[330446900,1719417038895,-500.0,0.00016438,2]
[330446901,1719417038905,-723.6137849,0.00016603,2]
[330446902,1719417038915,-490.15991609,0.00016604,2]
[330446903,1719417038925,-1567.90892425,0.00016604,2]
[330446904,1719417038934,-208.37564863,0.00016604,2]
[330446905,1719417038944,-3922.9174901,0.00016605,2]
[330446906,1719417038954,-242.79486718,0.00016606,2]
[330446907,1719417038964,-276.15513312,0.00016628,2]
[330446908,1719417038974,-565.90871239,0.00016628,2]
[330446909,1719417038984,-155.14708007,0.00016685,2]
[330446910,1719417038994,-154.83742071,0.00016685,2]
[330446911,1719417039004,-255.26958221,0.00016686,2]
[330446912,1719417039014,-282.93616103,0.00016687,2]
[330446913,1719417039024,-481.31478559,0.00016688,2]
[330446914,1719417039034,-489.70357394,0.00016689,2]
[330446915,1719417039044,-500.0,0.00016712,2]
[330446916,1719417039054,-500.54907436,0.00016712,2]
[330446917,1719417039064,-500.0,0.00016712,2]
[330446918,1719417039075,-500.0,0.00016712,2]
[330446919,1719417039086,-500.0,0.00016712,2]
[330446920,1719417039096,-500.0,0.00016712,2]
[330446921,1719417039106,-500.0,0.00016712,2]
[330446922,1719417039117,-500.0,0.00016712,2]
[330446923,1719417039127,-500.0,0.00016712,2]
[330446924,1719417039136,-500.0,0.00016712,2]
[330446925,1719417039148,-304.3261003,0.00016712,2]
[330446926,1719417039158,-500.0,0.00016712,2]
[330446927,1719417039168,-500.0,0.00016712,2]
[330446928,1719417039179,-170.76426655,0.00016712,2]
[330446929,1719417039189,-500.0,0.00016712,2]
[330446930,1719417039198,-500.0,0.00016712,2]
[330446931,1719417039208,-500.0,0.00016712,2]
[330446932,1719417039218,-500.0,0.00016712,2]
[330446933,1719417039227,-500.0,0.00016712,2]
[330446934,1719417039237,-1117.4675675,0.0001695,2]
[330446935,1719417039246,-394.90145033,0.00016951,2]
[330446936,1719417039255,-222.05313325,0.00016959,2]
[330446937,1719417039265,-495.02667607,0.0001696,2]